fUST/lending_fUST_20251119
["ID","MTS","AMOUNT","RATE_DAILY","PERIOD"]
[394426244,1763562751829,151.0,0.0004072,120]
[394426245,1763562752252,218.56532234,0.0004072,120]
[394426246,1763562776010,8988.0,0.0004072,20]
[394426247,1763562785630,1252.786753,0.00012845,2]
[394426248,1763562802280,920.19,0.0004072,30]
[394426249,1763562802683,920.19,0.0004072,30]
[394426250,1763562802951,920.19,0.0004072,30]
[394426251,1763562803195,920.19,0.0004072,30]
[394426252,1763562803435,920.19,0.0004072,30]
[394426253,1763562803698,920.19,0.0004072,30]
[394426254,1763562803997,920.19,0.0004072,30]
[394426255,1763562804497,920.19,0.0004072,30]
[394426256,1763562804645,920.19,0.0004072,30]
[394426257,1763562804968,920.19,0.0004072,30]
[394426258,1763562805217,920.19,0.0004072,120]
[394426259,1763562805551,920.19,0.0004072,120]
[394426260,1763562805713,920.19,0.0004072,120]
[394426261,1763562806007,920.19,0.0004072,120]
[394426262,1763562806069,151.0,0.0004072,120]
[394426263,1763562806252,920.19,0.0004072,120]
[394426264,1763562806495,920.19,0.0004072,120]
[394426265,1763562806602,230.201136,0.0004072,120]
[394426266,1763562806718,920.19,0.0004072,120]
[394426267,1763562806989,920.19,0.0004072,120]
[394426268,1763562807234,920.19,0.0004072,120]
[394426269,1763562807482,920.19,0.0004072,120]
[394426270,1763562807719,920.19,0.0004072,120]
[394426271,1763562807967,920.19,0.0004072,120]
[394426272,1763562808198,920.19,0.0004072,120]
[394426273,1763562808458,920.20856803,0.0004072,120]
[394426274,1763562816131,9749.933315,0.0004072,120]
[394426275,1763562816384,9749.933315,0.0004072,120]
[394426276,1763562816753,9749.933315,0.0004072,120]
[394426277,1763562817124,9749.933315,0.0004072,120]
[394426278,1763562817430,9749.933315,0.0004072,120]
[394426279,1763562817747,9749.933315,0.0004072,120]
[394426280,1763562818837,9749.933315,0.0004072,120]
[394426281,1763562819196,9749.933315,0.0004072,120]
[394426282,1763562819641,9749.933315,0.0004072,120]
[394426283,1763562820158,9749.933315,0.0004072,120]
[394426284,1763562820468,9749.933315,0.0004072,120]
[394426285,1763562820777,9749.933315,0.0004072,120]
[394426286,1763562821107,9749.933315,0.0004072,120]
[394426287,1763562821454,9749.933315,0.0004072,120]
[394426288,1763562821753,9749.933315,0.0004072,120]
[394426289,1763562822058,9749.933315,0.0004072,120]
[394426290,1763562822510,9749.933315,0.0004072,120]
[394426291,1763562823026,9749.933315,0.0004072,120]
[394426292,1763562823745,9749.933315,0.0004072,120]
[394426293,1763562824135,9749.933323,0.0004072,120]
[394426294,1763562847584,159.933963,0.0004072,120]
[394426295,1763562848469,657.405,0.00013187,2]
[394426296,1763562858258,151.0,0.0004072,120]
[394426297,1763562858632,151.0,0.0004072,120]
[394426298,1763562859223,151.0,0.0004072,120]
[394426299,1763562859698,151.0,0.0004072,120]
[394426300,1763562860067,155.459869,0.0004072,120]
[394426301,1763562864862,365.92529397,0.00013123,2]
[394426302,1763562866828,1463.70117587,0.00013123,2]
[394426303,1763562868886,3293.32764572,0.00013123,2]
[394426304,1763562870952,5848.94989879,0.00013123,2]
[394426305,1763562877985,151.0,0.0004072,120]
[394426306,1763562878391,151.0,0.0004072,120]
[394426307,1763562878601,-251.78698765,0.0002,21]
[394426308,1763562878661,-2990.4548575,0.0002,20]
[394426309,1763562878731,-1548.30889292,0.00021,10]
[394426310,1763562878796,-1000.0,0.00021548,20]
[394426311,1763562878853,-244.0,0.00021548,20]
[394426312,1763562878911,-2750.88,0.00022,14]
[394426313,1763562878979,-250.0,0.00022,10]
[394426314,1763562879046,-250.0,0.000221,10]
[394426315,1763562879221,-250.0,0.000222,10]
[394426316,1763562879277,-250.0,0.000223,10]
[394426317,1763562879327,-250.0,0.000224,10]
[394426318,1763562879377,-250.0,0.000225,10]
[394426319,1763562879431,-291.883417,0.000226,10]
[394426320,1763562879493,-1000.0,0.00023703,20]
[394426321,1763562879547,-492.0,0.00023703,20]
[394426322,1763562879597,-220.0,0.00023731,15]
[394426323,1763562879650,-2750.88,0.000243,14]
[394426324,1763562879731,-300.0,0.00025,30]
[394426325,1763562879799,-1000.0,0.00026073,20]
[394426326,1763562879858,-791.0,0.00026073,20]
[394426327,1763562879918,-2750.88,0.000267,14]
[394426328,1763562879972,-5762.018141,0.00027,30]
[394426329,1763562880036,-2750.88,0.000285,14]
[394426330,1763562880092,-1000.0,0.0002868,30]
[394426331,1763562880146,-1000.0,0.0002868,30]
[394426332,1763562880200,-1000.0,0.00029,29]
[394426333,1763562880253,-159.57943462,0.00029836,36]
[394426334,1763562880304,-362101.16758386,0.0003,30]
[394426335,1763562880354,-160.0,0.0003,30]
[394426336,1763562880404,-400.87691731,0.0003,30]
[394426337,1763562880455,-2750.88,0.000304,14]
[394426338,1763562880506,-400.67432439,0.000309,30]
[394426339,1763562880554,-1503.58,0.00031,30]
[394426340,1763562880607,-1000.0,0.00031548,30]
[394426341,1763562880658,-1000.0,0.00031548,30]
[394426342,1763562880711,-579.0,0.00031548,30]
[394426343,1763562880764,-151.0,0.00032877,31]
[394426344,1763562880832,-7718.11,0.00032877,10]
[394426345,1763562880889,-6431.76,0.00032877,10]
[394426346,1763562880949,-500.0,0.00032877,15]
[394426347,1763562881014,-500.0,0.00032877,30]
[394426348,1763562881071,-6092.31688053,0.00033,30]
[394426349,1763562881121,-1000.0,0.00033,120]
[394426350,1763562881173,-2750.88,0.00033,30]
[394426351,1763562881224,-160.0,0.00033,10]
[394426352,1763562881278,-400.87691731,0.00033,10]
[394426353,1763562881329,-1383.11,0.000331,14]
[394426354,1763562881383,-191.99521952,0.000332,117]
[394426355,1763562881434,-495.34343525,0.00033429,120]
[394426356,1763562881485,-152.92452867,0.00033781,30]
[394426357,1763562881541,-152.92452867,0.00034,30]
[394426358,1763562881595,-152.92452867,0.00034219,30]
[394426359,1763562881645,-95000.0,0.00034247,30]
[394426360,1763562881697,-152.92452867,0.00034438,30]
[394426361,1763562881749,-152.92452867,0.00034685,30]
[394426362,1763562881805,-1000.0,0.00034703,30]
[394426363,1763562881860,-1000.0,0.00034703,30]
[394426364,1763562881917,-1000.0,0.00034703,30]
[394426365,1763562881970,-152.92452867,0.00034904,30]
[394426366,1763562882026,-1000.0,0.00035,120]
[394426367,1763562882089,-156.0,0.00035,120]
[394426368,1763562882143,-150.0,0.00035,69]
[394426369,1763562882200,-546.65718,0.00035,120]
[394426370,1763562882255,-163.5,0.00035,90]
[394426371,1763562882311,-546.65718,0.000351,90]
[394426372,1763562882365,-152.92452867,0.00035123,30]
[394426373,1763562882420,-395.8371224,0.00035292,30]
[394426374,1763562882475,-395.8371224,0.00035292,30]
[394426375,1763562882529,-395.8371224,0.00035292,30]
[394426376,1763562882579,-382.59282,0.00035292,30]
[394426377,1763562882629,-152.92452867,0.00035342,30]
[394426378,1763562882681,-527.1869418,0.00035429,120]
[394426379,1763562882731,-500.0,0.00035556,10]
[394426380,1763562882791,-152.92452867,0.00035562,30]
[394426381,1763562882849,-1383.11,0.000357,14]
[394426382,1763562882916,-2750.88,0.000357,30]
[394426383,1763562882984,-1000.0,0.000358,30]
[394426384,1763562883049,-500.0,0.00036986,15]
[394426385,1763562883107,-292.89297073,0.00036986,15]
[394426386,1763562883170,-500.0,0.00036986,15]
[394426387,1763562883230,-482.66841602,0.00036986,15]
[394426388,1763562883287,-500.0,0.00036986,15]
[394426389,1763562883343,-500.0,0.00036986,15]
[394426390,1763562883401,-500.0,0.00036986,15]
[394426391,1763562883455,-1000.0,0.00037,120]
[394426392,1763562883507,-240.33811831,0.00037,120]
[394426393,1763562883562,-169.375,0.00037254,90]
[394426394,1763562883612,-559.03044835,0.00037429,120]
[394426395,1763562883759,-315.25408621,0.0003748,30]
[394426396,1763562883812,-473.675,0.0003749,48]
[394426397,1763562883870,-1383.11,0.000378,14]
[394426398,1763562883928,-157.36,0.00037858,60]
[394426399,1763562883993,-157.36,0.00037958,60]
[394426400,1763562884054,-200.0,0.00038,120]
[394426401,1763562884110,-157.36,0.00038058,60]
[394426402,1763562884170,-157.36,0.00038158,60]
[394426403,1763562884237,-1000.0,0.00038173,30]
[394426404,1763562884307,-1000.0,0.00038173,30]
[394426405,1763562884370,-1000.0,0.00038173,30]
[394426406,1763562884451,-715.0,0.00038173,30]
[394426407,1763562884513,-191.99521952,0.00038256,120]
[394426408,1763562884581,-157.36,0.00038258,60]
[394426409,1763562884642,-546.65718,0.00038338,90]
[394426410,1763562884706,-157.36,0.00038358,120]
[394426411,1763562884768,-545.57329215,0.000384,120]
[394426412,1763562884827,-208.57736392,0.000384,120]
[394426413,1763562884893,-169.375,0.0003844,90]
[394426414,1763562884968,-157.36,0.00038458,120]
[394426415,1763562885042,-157.36,0.00038558,120]
[394426416,1763562885115,-1076.96281362,0.0003857,120]
[394426417,1763562885186,-157.36,0.00038658,120]
[394426418,1763562885256,-157.36,0.00038758,120]
[394426419,1763562885321,-157.36,0.00038858,120]
[394426420,1763562885385,-157.36,0.00038958,120]
[394426421,1763562885444,-1000.0,0.00039,120]
[394426422,1763562885504,-14915.50016355,0.00039,30]
[394426423,1763562885562,-805.71893834,0.00039,10]
[394426424,1763562885595,-200.0,0.00039,120]
[394426425,1763562885631,-157.36,0.00039058,120]
[394426426,1763562885665,-157.36,0.00039158,120]
[394426427,1763562885699,-157.43850675,0.00039258,120]
[394426428,1763562885731,-590.8739549,0.00039429,120]
[394426429,1763562885770,-545.57329215,0.000395,120]
[394426430,1763562885807,-74548.37141226,0.000398,30]
[394426431,1763562885843,-1000.0,0.000398,60]
[394426432,1763562885879,-200.80609156,0.000399,120]
[394426433,1763562885915,-172.92439916,0.0003999,20]
[394426434,1763562885951,-201945.63824541,0.0004,120]
[394426435,1763562885998,-174.32891891,0.0004,120]
[394426436,1763562886043,-160.0,0.0004,120]
[394426437,1763562886086,-1024.41967643,0.0004,10]
[394426438,1763562886132,-200.0,0.0004,120]
[394426439,1763562886174,-200.0,0.0004,120]
[394426440,1763562886216,-2000.0,0.0004,21]
[394426441,1763562886260,-1965.871682,0.0004038,14]
[394426442,1763562886301,-1000.0,0.000404,14]
[394426443,1763562886340,-1000.0,0.0004042,14]
[394426444,1763562886382,-1000.0,0.0004044,14]
[394426445,1763562886419,-1000.0,0.0004046,14]
[394426446,1763562886457,-1000.0,0.0004048,14]
[394426447,1763562886498,-1000.0,0.000405,14]
[394426448,1763562886537,-2025.02405777,0.00040516,46]
[394426449,1763562886578,-1000.0,0.0004052,14]
[394426450,1763562886620,-1000.0,0.0004054,14]
[394426451,1763562886655,-1000.0,0.0004056,14]
[394426452,1763562886691,-1000.0,0.0004058,14]
[394426453,1763562886731,-1184.658982,0.0004058,14]
[394426454,1763562886768,-1000.0,0.000406,14]
[394426455,1763562886805,-1000.0,0.000406,14]
[394426456,1763562886841,-482.26,0.00040632,30]
[394426457,1763562886878,-545.57329215,0.000407,120]
[394426458,1763562886916,-1007.92764,0.000407,34]
[394426459,1763562886962,-500.0,0.0004072,120]
[394426460,1763562887007,-150.0,0.0004072,20]
[394426461,1763562887048,-218.70582509,0.0004072,14]
[394426462,1763562887085,-151.0,0.0004072,60]
[394426463,1763562887122,-151.0,0.0004072,60]
[394426464,1763562887158,-151.0,0.0004072,60]
[394426465,1763562887194,-151.0,0.0004072,60]
[394426466,1763562887231,-151.0,0.0004072,60]
[394426467,1763562887270,-217.53995585,0.0004072,60]
[394426468,1763562887307,-1000.0,0.0004072,60]
[394426469,1763562887344,-1000.0,0.0004072,60]
[394426470,1763562887380,-1000.0,0.0004072,60]
[394426471,1763562887419,-569.4187597,0.0004072,60]
[394426472,1763562887460,-867.89424792,0.0004072,60]
[394426473,1763562887503,-5000.0,0.0004072,20]
[394426474,1763562887539,-7286.43505532,0.00040889,28]
[394426475,1763562887698,-500.0,0.0004096,30]
[394426476,1763562887731,-500.0,0.00040994,120]
[394426477,1763562887765,-1000.0,0.00041,120]
[394426478,1763562887797,-500.0,0.00041015,30]
[394426479,1763562887830,-293.8660516,0.00041046,30]
[394426480,1763562887864,-153.0,0.00041046,30]
[394426481,1763562887900,-153.0,0.00041046,30]
[394426482,1763562887934,-500.0,0.00041091,30]
[394426483,1763562887973,-200.43,0.00041096,120]
[394426484,1763562888011,-311.57,0.00041096,120]
[394426485,1763562888052,-182.982403,0.00041096,120]
[394426486,1763562888088,-546.65718,0.00041172,120]
[394426487,1763562888124,-500.0,0.00041268,120]
[394426488,1763562888160,-500.0,0.00041413,30]
[394426489,1763562888197,-622.71746145,0.00041429,120]
[394426490,1763562888235,-200.0,0.00041459,120]
[394426491,1763562888274,-500.0,0.00041499,30]
[394426492,1763562888312,-47.80964201,0.00041542,120]
[394426493,1763562888433,151.0,0.0004072,120]
[394426494,1763562888480,151.0,0.0004072,120]
[394426495,1763562888528,151.0,0.0004072,120]
[394426496,1763562888573,151.0,0.0004072,120]
[394426497,1763562888616,151.0,0.0004072,120]
[394426498,1763562888659,151.0,0.0004072,120]
[394426499,1763562888699,151.0,0.0004072,120]
[394426500,1763562888856,151.0,0.0004072,120]
[394426501,1763562888948,151.0,0.0004072,120]
[394426502,1763562889062,151.0,0.0004072,120]
[394426503,1763562889106,151.0,0.0004072,120]
[394426504,1763562889153,151.0,0.0004072,120]
[394426505,1763562889197,151.0,0.0004072,120]
[394426506,1763562889240,151.0,0.0004072,120]
[394426507,1763562889286,151.0,0.0004072,120]
[394426508,1763562889504,151.0,0.0004072,120]
[394426509,1763562889550,183.04826424,0.0004072,120]
[394426510,1763562894583,-5359.8,0.00032877,10]
[394426511,1763562894619,-4466.5,0.00032877,10]
[394426512,1763562894675,-5000.0,0.0004072,20]
[394426513,1763562894716,-452.19035799,0.00041542,120]
[394426514,1763562894759,-546.65718,0.00041575,90]
[394426515,1763562894797,-550.0,0.00041644,10]
[394426516,1763562894835,-507.49287842,0.00041811,30]
[394426517,1763562894873,-551.25,0.00041816,120]
[394426518,1763562894911,-545.57329215,0.000419,120]
[394426519,1763562894949,-11037.0,0.000419,120]
[394426520,1763562894987,-500.0,0.00041917,30]
[394426521,1763562895032,-1000.0,0.00041991,90]
[394426522,1763562895071,-1000.0,0.00041991,90]
[394426523,1763562895108,-1000.0,0.00041991,90]
[394426524,1763562895143,-460.37428264,0.00042,120]
[394426525,1763562895178,-182.41,0.00042128,30]
[394426526,1763562895212,-500.0,0.00042154,30]
[394426527,1763562895244,-1000.0,0.0004217,14]
[394426528,1763562895281,-500.0,0.00042288,30]
[394426529,1763562895314,-1000.0,0.00042307,14]
[394426530,1763562895348,-500.0,0.00042391,30]
[394426531,1763562895387,-1000.0,0.00042444,14]
[394426532,1763562895425,-650.0,0.00042466,10]
[394426533,1763562895461,-500.0,0.00042472,30]
[394426534,1763562895495,-500.0,0.00042564,30]
[394426535,1763562895533,-1000.0,0.00042581,14]
[394426536,1763562895566,-1000.0,0.00042718,14]
[394426537,1763562895597,-1000.0,0.00042855,14]
[394426538,1763562895628,-500.0,0.0004287,30]
[394426539,1763562895661,-500.0,0.00042898,30]
[394426540,1763562895692,-1000.0,0.00042992,14]
[394426541,1763562895725,-1000.0,0.00043,120]
[394426542,1763562895760,-2750.88,0.00043,30]
[394426543,1763562895794,-1000.0,0.00043129,14]
[394426544,1763562895834,-500.0,0.00043165,30]
[394426545,1763562895878,-200.0,0.0004317,120]
[394426546,1763562895920,-545.57329215,0.000432,120]
[394426547,1763562895962,-3435.0279,0.0004322,30]
[394426548,1763562896002,-1000.0,0.00043266,14]
[394426549,1763562896039,-750.0,0.00043288,10]
[394426550,1763562896075,-500.0,0.00043365,30]
[394426551,1763562896113,-156.0,0.000434,120]
[394426552,1763562896149,-1000.0,0.00043403,14]
[394426553,1763562896188,-654.560968,0.00043429,120]
[394426554,1763562896225,-500.0,0.00043448,30]
[394426555,1763562896260,-1000.0,0.0004354,14]
[394426556,1763562896298,-500.0,0.0004358,30]
[394426557,1763562896335,-500.0,0.000436,30]
[394426558,1763562896370,-1000.0,0.00043677,14]
[394426559,1763562896405,-500.0,0.00043698,30]
[394426560,1763562896440,-1000.0,0.00043814,14]
[394426561,1763562896475,-1000.0,0.00043951,14]
[394426562,1763562896511,-2000.0,0.00044,21]
[394426563,1763562896549,-1000.0,0.00044088,14]
[394426564,1763562896585,-500.0,0.00044088,30]
[394426565,1763562896622,-199.0,0.00044109,30]
[394426566,1763562896653,-850.0,0.0004411,10]
[394426567,1763562896689,-364.82,0.00044134,30]
[394426568,1763562896722,-169.375,0.00044214,120]
[394426569,1763562896761,-1000.0,0.00044225,14]
[394426570,1763562896797,-500.0,0.00044293,30]
[394426571,1763562896834,-500.0,0.00044341,30]
[394426572,1763562896870,-1000.0,0.00044362,14]
[394426573,1763562896910,-500.0,0.00044447,30]
[394426574,1763562896946,-1000.0,0.00044499,14]
[394426575,1763562896990,-1000.0,0.00044636,14]
[394426576,1763562897031,-500.0,0.00044717,30]
[394426577,1763562897068,-1000.0,0.00044773,14]
[394426578,1763562897107,-546.65718,0.00044812,90]
[394426579,1763562897146,-500.0,0.00044862,30]
[394426580,1763562897186,-500.0,0.00044894,30]
[394426581,1763562897224,-1000.0,0.0004491,14]
[394426582,1763562897266,-500.0,0.00044911,30]
[394426583,1763562897307,-950.0,0.00044932,10]
[394426584,1763562897348,-500.0,0.00044942,30]
[394426585,1763562897389,-500.0,0.00044948,30]
[394426586,1763562897428,-495.48,0.00045,14]
[394426587,1763562897462,-500.07,0.00045268,20]
[394426588,1763562897496,-447.0914644,0.000454,30]
[394426589,1763562897533,-256.48186887,0.000454,120]
[394426590,1763562897568,-686.40447456,0.00045429,120]
[394426591,1763562897601,-555188.7932,0.0004544,30]
[394426592,1763562897635,-7286.43505532,0.00045456,28]
[394426593,1763562897767,-494.02400556,0.00045479,120]
[394426594,1763562897806,-199.0,0.00045479,30]
[394426595,1763562897842,-253565.07759994,0.00045556,30]
[394426596,1763562901867,151.0,0.0004072,28]
[394426597,1763562903310,151.0,0.0004072,28]
[394426598,1763562904180,151.0,0.0004072,28]
[394426599,1763562904696,151.0,0.0004072,28]
[394426600,1763562905034,151.0,0.0004072,28]
[394426601,1763562905462,151.0,0.0004072,28]
[394426602,1763562905837,151.0,0.0004072,28]
[394426603,1763562906307,151.0,0.0004072,28]
[394426604,1763562906604,151.0,0.0004072,28]
[394426605,1763562907399,151.0,0.0004072,28]
[394426606,1763562908484,151.0,0.00040713,120]
[394426607,1763562908551,151.0,0.00040713,28]
[394426608,1763562909348,151.0,0.00040713,28]
[394426609,1763562909491,151.0,0.00040713,120]
[394426610,1763562909628,151.0,0.00040713,28]
[394426611,1763562909896,151.0,0.00040713,120]
[394426612,1763562910134,151.0,0.00040713,28]
[394426613,1763562910450,200.515922,0.00040713,120]
[394426614,1763562910496,151.0,0.00040713,28]
[394426615,1763562910917,151.0,0.00040713,28]
[394426616,1763562911092,151.0,0.00040713,28]
[394426617,1763562911593,151.0,0.00040713,28]
[394426618,1763562911931,162.022832,0.00040713,28]
[394426619,1763562921655,-550.17,0.00022,14]
[394426620,1763562921716,-550.17,0.000247,14]
[394426621,1763562921757,-550.17,0.000277,14]
[394426622,1763562921802,-550.17,0.000314,14]
[394426623,1763562921847,-3722.08,0.00032877,10]
[394426624,1763562921887,-3101.74,0.00032877,10]
[394426625,1763562921926,-968.17,0.000329,14]
[394426626,1763562921967,-550.17,0.000366,30]
[394426627,1763562922006,-968.17,0.000369,14]
[394426628,1763562922052,-968.17,0.000389,14]
[394426629,1763562922091,-550.17,0.000391,30]
[394426630,1763562922135,-5000.0,0.00040713,20]
[394426631,1763562922179,-510.56,0.0004072,30]
[394426632,1763562922216,-968.17,0.00041,14]
[394426633,1763562922248,-166.0,0.0004111,14]
[394426634,1763562922386,-166.0,0.0004111,14]
[394426635,1763562922423,-333.0,0.0004111,14]
[394426636,1763562922457,-333.0,0.0004111,14]
[394426637,1763562922490,-304.99088798,0.00041644,10]
[394426638,1763562922527,-550.17,0.00045,30]
[394426639,1763562922559,-5000.0,0.00045555,30]
[394426640,1763562922590,-5185.0,0.00045555,30]
[394426641,1763562922623,-2743.83410132,0.00045555,30]
[394426642,1763562922656,-163.15648338,0.00045555,30]
[394426643,1763562922689,-516186.41084099,0.00045556,30]
[394426644,1763562922724,-230257.40403823,0.00045556,30]
[394426645,1763562922760,-500.0,0.00045605,60]
[394426646,1763562922803,-500.0,0.00045697,60]
[394426647,1763562922844,-118102.9536481,0.00046,10]
[394426648,1763562926375,-2584.78,0.00032877,10]
[394426649,1763562926428,-333.0,0.0004111,14]
[394426650,1763562926468,-897082.22,0.00046,10]
[394426651,1763562930136,-333.0,0.0004111,14]
[394426652,1763562930178,-333.0,0.0004111,14]
[394426653,1763562930219,-333.0,0.0004111,14]
[394426654,1763562930260,-333.0,0.0004111,14]
[394426655,1763562930303,-333.0,0.0004111,14]
[394426656,1763562930341,-340.75331161,0.0004111,14]
[394426657,1763562930378,-2153.87700051,0.00043971,30]
[394426658,1763562930414,-2153.87700051,0.00044227,30]
[394426659,1763562930449,-2153.87700051,0.00044554,30]
[394426660,1763562930484,-2153.87700051,0.00044855,30]
[394426661,1763562930518,-3623.56908113,0.00045858,30]
[394426662,1763562930557,-885755.16960522,0.00046,10]
[394426663,1763562934101,-174.0,0.0004111,14]
[394426664,1763562934140,-175.12851068,0.0004111,14]
[394426665,1763562934179,-2153.87700051,0.00045023,30]
[394426666,1763562934216,-2153.87700051,0.00045432,30]
[394426667,1763562934253,-895343.1174883,0.00046,10]
[394426668,1763562936212,151.0,0.00040713,120]
[394426669,1763562936590,151.0,0.00040713,120]
[394426670,1763562936946,151.0,0.00040713,120]
[394426671,1763562937975,-2153.98,0.00032877,10]
[394426672,1763562938015,-420.0,0.00033363,120]
[394426673,1763562938057,-447.0,0.00035363,120]
[394426674,1763562938096,-474.0,0.00037363,120]
[394426675,1763562938147,-896505.02,0.00046,10]
[394426676,1763562941127,-501.0,0.00039363,120]
[394426677,1763562941169,-5000.0,0.00040713,20]
[394426678,1763562941215,-894499.0,0.00046,10]
[394426679,1763562944789,-900000.0,0.00046,10]
[394426680,1763562947948,-212712.51925838,0.00046,10]
[394426681,1763562947991,-500.0,0.00046158,60]
[394426682,1763562948029,-293.85068442,0.000463,60]
[394426683,1763562948071,-500.0,0.00046358,60]
[394426684,1763562948110,-199.0,0.00046849,30]
[394426685,1763562948145,-500.0,0.00046916,60]
[394426686,1763562948185,-500.0,0.00047103,60]
[394426687,1763562948221,-500.0,0.00047171,60]
[394426688,1763562948259,-500.0,0.0004729,60]
[394426689,1763562948406,-546.65718,0.00047345,120]
[394426690,1763562948446,-674613.9565,0.0004744,30]
[394426691,1763562948484,-527.5957507,0.00047484,60]
[394426692,1763562948520,-518.94248816,0.00047721,60]
[394426693,1763562948556,-169.375,0.00047752,120]
[394426694,1763562948589,-618.0,0.0004788,120]
[394426695,1763562948622,-150.02105414,0.00048,120]
[394426696,1763562948654,-1000.0,0.00048,120]
[394426697,1763562948685,-2000.0,0.00048,21]
[394426698,1763562948718,-175.861798,0.0004805,90]
[394426699,1763562948750,-546.65718,0.0004805,90]
[394426700,1763562948781,-504.85951833,0.00048108,60]
[394426701,1763562948818,-199.0,0.00048219,30]
[394426702,1763562948854,-500.0,0.00048311,60]
[394426703,1763562948892,-516.87375179,0.00048629,60]
[394426704,1763562948928,-500.0,0.00048662,60]
[394426705,1763562948967,-500.0,0.00048683,60]
[394426706,1763562949008,-206.82983608,0.00048703,60]
[394426707,1763562951509,-1794.99,0.00032877,10]
[394426708,1763562951564,-293.17016392,0.00048703,60]
[394426709,1763562951600,-163.0,0.00048767,120]
[394426710,1763562951635,-1000.0,0.000488,120]
[394426711,1763562951668,-74143.14775142,0.00048875,60]
[394426712,1763562951702,-499.3,0.00048916,60]
[394426713,1763562951740,-300.0,0.00048932,60]
[394426714,1763562951777,-1010.99984649,0.00049,120]
[394426715,1763562951812,-1349.51565535,0.00049,60]
[394426716,1763562951851,-500.0,0.00049032,60]
[394426717,1763562951890,-837.00259935,0.00049038,60]
[394426718,1763562951925,-789.57049505,0.00049289,60]
[394426719,1763562951963,-500.0,0.00049369,60]
[394426720,1763562952002,-40000.0,0.000494,120]
[394426721,1763562952040,-539691.1652,0.0004944,30]
[394426722,1763562952084,-199.0,0.00049589,30]
[394426723,1763562952126,-4990.0,0.000497,120]
[394426724,1763562952168,-922.99302761,0.00049718,60]
[394426725,1763562952209,-11551.53465814,0.0004987,30]
[394426726,1763562952247,-672.8784478,0.0005,120]
[394426727,1763562952286,-222.48336084,0.0005,20]
[394426728,1763562952326,-200.87247363,0.0005,120]
[394426729,1763562952360,-158.32270333,0.0005,120]
[394426730,1763562952392,-985.98219684,0.0005,120]
[394426731,1763562952423,-40129.09245396,0.0005,120]
[394426732,1763562952453,-338.28365676,0.0005,120]
[394426733,1763562952486,-300.0,0.00050027,70]
[394426734,1763562952521,-199.0,0.00050958,30]
[394426735,1763562952556,-3000.0,0.00051,85]
[394426736,1763562952587,-445.93,0.00051,14]
[394426737,1763562952618,-3000.0,0.0005101,85]
[394426738,1763562952648,-3000.0,0.0005102,85]
[394426739,1763562952680,-3000.0,0.0005103,85]
[394426740,1763562952711,-3000.0,0.0005104,85]
[394426741,1763562952743,-3000.0,0.0005105,85]
[394426742,1763562952775,-3000.0,0.0005106,85]
[394426743,1763562952805,-3000.0,0.0005107,85]